fUST/lending_fUST_20251212
["ID","MTS","AMOUNT","RATE_DAILY","PERIOD"]
[398310912,1765522821976,-792.08,0.00047123,120]
[398310913,1765522822059,-1995.96,0.00047123,120]
[398310914,1765522822128,-334.35490454,0.00047123,120]
[398310915,1765522822196,-829.2,0.00047123,120]
[398310916,1765522822263,-500.0,0.00047123,120]
[398310917,1765522822334,-500.0,0.00047123,120]
[398310918,1765522822408,-2884.18,0.00047123,120]
[398310919,1765522822478,-5726.32,0.00047123,120]
[398310920,1765522822551,-14362.59,0.00047123,120]
[398310921,1765522822623,-500.0,0.00047123,120]
[398310922,1765522822690,-500.0,0.00047123,120]
[398310923,1765522822756,-16201.21,0.00047123,120]
[398310924,1765522822822,-500.69610657,0.00047123,120]
[398310925,1765522822889,-1346.53,0.00047123,120]
[398310926,1765522822954,-588.3,0.00047123,120]
[398310927,1765522823020,-500.0,0.00047123,120]
[398310928,1765522823087,-500.0,0.00047123,120]
[398310929,1765522823155,-500.0,0.00047123,120]
[398310930,1765522823226,-500.0,0.00047123,120]
[398310931,1765522823300,-500.0,0.00047123,120]
[398310932,1765522823378,-500.0,0.00047123,60]
[398310933,1765522823455,-3933.9,0.00047123,120]
[398310934,1765522823531,-500.0,0.00047123,120]
[398310935,1765522823606,-2194.05,0.00047123,120]
[398310936,1765522823687,-796.43,0.00047123,120]
[398310937,1765522823763,-500.0,0.00047123,120]
[398310938,1765522823836,-500.0,0.00047123,120]
[398310939,1765522823909,-1686.09,0.00047123,120]
[398310940,1765522823982,-14836.37,0.00047123,120]
[398310941,1765522824053,-500.0,0.00047123,120]
[398310942,1765522824126,-500.0,0.00047123,120]
[398310943,1765522824206,-1397.88,0.00047123,120]
[398310944,1765522824281,-500.0,0.00047123,120]
[398310945,1765522824355,-1635.58,0.00047123,120]
[398310946,1765522824441,-2118.27,0.00047123,120]
[398310947,1765522824516,-500.0,0.00047123,120]
[398310948,1765522824590,-1506.78,0.00047123,120]
[398310949,1765522824659,-500.0,0.00047123,120]
[398310950,1765522824730,-991.08,0.00047123,120]
[398310951,1765522824800,-1474.26,0.00047123,120]
[398310952,1765522824877,-500.0,0.00047123,120]
[398310953,1765522824953,-312.19272598,0.00047123,120]
[398310954,1765522825024,-500.0,0.00047123,120]
[398310955,1765522825092,-500.0,0.00047123,120]
[398310956,1765522825158,-500.0,0.00047123,120]
[398310957,1765522825230,-2032.25,0.00047123,120]
[398310958,1765522825301,-2716.27,0.00047123,120]
[398310959,1765522825380,-1926.5,0.00047123,120]
[398310960,1765522825455,-481.85380602,0.00047123,120]
[398310961,1765522825530,-500.0,0.00047123,120]
[398310962,1765522825600,-524.96,0.00047123,120]
[398310963,1765522825672,-501.82211571,0.00047123,120]
[398310964,1765522825745,-559.01,0.00047123,120]
[398310965,1765522825811,-502.60952052,0.00047123,120]
[398310966,1765522825877,-3558.85,0.00047123,120]
[398310967,1765522825944,-1425.58,0.00047123,120]
[398310968,1765522826015,-500.0,0.00047123,120]
[398310969,1765522826086,-500.0,0.00047123,120]
[398310970,1765522826157,-560.21,0.00047123,120]
[398310971,1765522826231,-500.0,0.00047123,120]
[398310972,1765522826305,-536.6,0.00047123,120]
[398310973,1765522826379,-3156.52,0.00047123,60]
[398310974,1765522826451,-2895.12,0.00047123,120]
[398310975,1765522826522,-3356.79,0.00047123,120]
[398310976,1765522826593,-4128.24,0.00047123,120]
[398310977,1765522826657,-6550.78,0.00047123,120]
[398310978,1765522826727,-34959.56,0.00047123,120]
[398310979,1765522826793,-500.0,0.00047123,120]
[398310980,1765522826857,-500.0,0.00047123,120]
[398310981,1765522826924,-500.0,0.00047123,120]
[398310982,1765522827008,-4913.5,0.00047123,120]
[398310983,1765522827095,-500.0,0.00047123,120]
[398310984,1765522827163,-500.0,0.00047123,120]
[398310985,1765522827231,-500.0,0.00047123,120]
[398310986,1765522827299,-827.77,0.00047123,120]
[398310987,1765522827365,-500.0,0.00047123,120]
[398310988,1765522827431,-2300.92,0.00047123,120]
[398310989,1765522827499,-3691.82,0.00047123,120]
[398310990,1765522827566,-2480.5,0.00047123,120]
[398310991,1765522827631,-532.56307937,0.00047123,120]
[398310992,1765522827858,-500.0,0.00047123,120]
[398310993,1765522827920,-190.83457716,0.00047123,120]
[398310994,1765522827981,-722.73,0.00047123,120]
[398310995,1765522828041,-4419.0,0.00047123,120]
[398310996,1765522828103,-831.5,0.00047123,120]
[398310997,1765522828168,-858.72,0.00047123,120]
[398310998,1765522828238,-500.0,0.00047123,120]
[398310999,1765522828309,-1198.81,0.00047123,120]
[398311000,1765522828384,-500.0,0.00047123,120]
[398311001,1765522828458,-7921.22,0.00047123,120]
[398311002,1765522828528,-1515.74,0.00047123,120]
[398311003,1765522828594,-500.0,0.00047123,120]
[398311004,1765522828659,-500.0,0.00047123,120]
[398311005,1765522828725,-500.0,0.00047123,120]
[398311006,1765522828789,-500.0,0.00047123,120]
[398311007,1765522828853,-500.0,0.00047123,120]
[398311008,1765522828916,-1233.38,0.00047123,120]
[398311009,1765522828979,-500.0,0.00047123,120]
[398311010,1765522829038,-1429.13,0.00047123,120]
[398311011,1765522829101,-960.89,0.00047123,120]
[398311012,1765522829167,-525.14,0.00047123,120]
[398311013,1765522829233,-841.86,0.00047123,120]
[398311014,1765522829305,-429.65747946,0.00047123,120]
[398311015,1765522829374,-1001.38,0.00047123,120]
[398311016,1765522829443,-500.0,0.00047123,120]
[398311017,1765522829512,-1274.41,0.00047123,120]
[398311018,1765522829581,-180.82211931,0.00047123,120]
[398311019,1765522829646,-500.0,0.00047123,120]
[398311020,1765522829716,-1401.45,0.00047123,120]
[398311021,1765522829782,-732.87,0.00047123,120]
[398311022,1765522829847,-500.0,0.00047123,120]
[398311023,1765522829919,-1013.62,0.00047123,120]
[398311024,1765522829983,-500.0,0.00047123,120]
[398311025,1765522830049,-528.57,0.00047123,120]
[398311026,1765522830116,-3258.92,0.00047123,120]
[398311027,1765522830188,-591.89,0.00047123,120]
[398311028,1765522830256,-812.78,0.00047123,120]
[398311029,1765522830324,-500.0,0.00047123,120]
[398311030,1765522830389,-761.67,0.00047123,120]
[398311031,1765522830459,-500.0,0.00047123,120]
[398311032,1765522830525,-500.0,0.00047123,120]
[398311033,1765522830589,-2134.68,0.00047123,120]
[398311034,1765522830651,-220.23861024,0.00047123,120]
[398311035,1765522830714,-500.0,0.00047123,120]
[398311036,1765522830775,-1600.42,0.00047123,120]
[398311037,1765522830840,-500.0,0.00047123,120]
[398311038,1765522830904,-2819.02,0.00047123,120]
[398311039,1765522830971,-501.33007041,0.00047123,120]
[398311040,1765522831042,-500.0,0.00047123,120]
[398311041,1765522831113,-500.0,0.00047123,30]
[398311042,1765522831186,-500.0,0.00047123,120]
[398311043,1765522831264,-500.0,0.00047123,120]
[398311044,1765522831338,-44117.77,0.00047123,120]
[398311045,1765522831410,-1318.73,0.00047123,120]
[398311046,1765522831481,-535.86103687,0.00047123,120]
[398311047,1765522831548,-820.05,0.00047123,120]
[398311048,1765522831613,-7290.47,0.00047123,120]
[398311049,1765522831678,-1064.16,0.00047123,120]
[398311050,1765522831748,-500.0,0.00047123,120]
[398311051,1765522831813,-500.0,0.00047123,120]
[398311052,1765522831877,-500.0,0.00047123,120]
[398311053,1765522831941,-500.0,0.00047123,120]
[398311054,1765522832002,-670.09,0.00047123,120]
[398311055,1765522832066,-500.0,0.00047123,120]
[398311056,1765522832135,-500.0,0.00047123,120]
[398311057,1765522832205,-563.99,0.00047123,120]
[398311058,1765522832274,-1063.37,0.00047123,120]
[398311059,1765522832348,-500.0,0.00047123,120]
[398311060,1765522832417,-6869.16,0.00047123,120]
[398311061,1765522832484,-500.0,0.00047123,120]
[398311062,1765522832554,-500.0,0.00047123,120]
[398311063,1765522832621,-10539.81,0.00047123,120]
[398311064,1765522832683,-500.0,0.00047123,120]
[398311065,1765522832745,-10525.78,0.00047123,120]
[398311066,1765522832807,-500.0,0.00047123,120]
[398311067,1765522832870,-677.03,0.00047123,60]
[398311068,1765522832937,-937.62,0.00047123,120]
[398311069,1765522833001,-1342.56,0.00047123,120]
[398311070,1765522833066,-1509.87,0.00047123,120]
[398311071,1765522833131,-2058.9,0.00047123,120]
[398311072,1765522833197,-1503.87,0.00047123,120]
[398311073,1765522833267,-500.0,0.00047123,120]
[398311074,1765522833339,-500.0,0.00047123,120]
[398311075,1765522833410,-500.0,0.00047123,120]
[398311076,1765522833483,-500.0,0.00047123,120]
[398311077,1765522833557,-600.2,0.00047123,120]
[398311078,1765522833629,-500.0,0.00047123,120]
[398311079,1765522833699,-500.0,0.00047123,120]
[398311080,1765522833767,-2949.79,0.00047123,120]
[398311081,1765522833836,-500.0,0.00047123,120]
[398311082,1765522833903,-500.0,0.00047123,120]
[398311083,1765522833968,-500.0,0.00047123,120]
[398311084,1765522834031,-7010.6,0.00047123,120]
[398311085,1765522834096,-897.1,0.00047123,120]
[398311086,1765522834334,-500.0,0.00047123,120]
[398311087,1765522834407,-5909.49,0.00047123,120]
[398311088,1765522834492,-500.0,0.00047123,120]
[398311089,1765522834572,-1686.76,0.00047123,120]
[398311090,1765522834646,-506.29,0.00047123,120]
[398311091,1765522834720,-500.0,0.00047123,120]
[398311092,1765522834794,-500.0,0.00047123,120]
[398311093,1765522834864,-500.0,0.00047123,120]
[398311094,1765522834938,-1091.15,0.00047123,120]
[398311095,1765522835017,-800.42,0.00047123,120]
[398311096,1765522835094,-1532.27,0.00047123,120]
[398311097,1765522835167,-764.65,0.00047123,120]
[398311098,1765522835242,-536.11,0.00047123,120]
[398311099,1765522835318,-500.0,0.00047123,120]
[398311100,1765522835395,-2251.99,0.00047123,120]
[398311101,1765522835473,-500.0,0.00047123,120]
[398311102,1765522835547,-500.0,0.00047123,120]
[398311103,1765522835619,-500.0,0.00047123,120]
[398311104,1765522835692,-500.0,0.00047123,120]
[398311105,1765522835781,-500.0,0.00047123,120]
[398311106,1765522835868,-500.0,0.00047123,120]
[398311107,1765522835938,-500.0,0.00047123,120]
[398311108,1765522836010,-500.0,0.00047123,120]
[398311109,1765522836087,-500.0,0.00047123,120]
[398311110,1765522836161,-500.0,0.00047123,120]
[398311111,1765522836236,-1041.49,0.00047123,120]
[398311112,1765522836313,-500.0,0.00047123,120]
[398311113,1765522836390,-182.05825704,0.00047123,10]
[398311114,1765522836464,-500.0,0.00047123,120]
[398311115,1765522836537,-500.0,0.00047123,120]
[398311116,1765522836609,-713.55,0.00047123,120]
[398311117,1765522836679,-500.0,0.00047123,120]
[398311118,1765522836751,-500.0,0.00047123,120]
[398311119,1765522836819,-500.0,0.00047123,120]
[398311120,1765522836885,-501.17777329,0.00047123,120]
[398311121,1765522836951,-500.0,0.00047123,120]
[398311122,1765522837014,-500.0,0.00047123,120]
[398311123,1765522837076,-500.0,0.00047123,120]
[398311124,1765522837142,-500.0,0.00047123,120]
[398311125,1765522837207,-500.0,0.00047123,120]
[398311126,1765522837275,-500.0,0.00047123,120]
[398311127,1765522837345,-1238.59,0.00047123,120]
[398311128,1765522837416,-500.0,0.00047123,120]
[398311129,1765522837486,-500.0,0.00047123,120]
[398311130,1765522837555,-562.49282167,0.00047123,120]
[398311131,1765522837619,-1285.51,0.00047123,120]
[398311132,1765522837681,-541.96,0.00047123,120]
[398311133,1765522837748,-500.0,0.00047123,120]
[398311134,1765522837811,-500.0,0.00047123,120]
[398311135,1765522837874,-500.0,0.00047123,120]
[398311136,1765522837936,-828.34,0.00047123,120]
[398311137,1765522837999,-500.0,0.00047123,120]
[398311138,1765522838062,-500.0,0.00047123,120]
[398311139,1765522838130,-500.0,0.00047123,120]
[398311140,1765522838200,-500.0,0.00047123,120]
[398311141,1765522838271,-867.25,0.00047123,120]
[398311142,1765522838347,-1668.536328,0.00047123,120]
[398311143,1765522838426,-500.0,0.00047123,120]
[398311144,1765522838502,-500.0,0.00047123,120]
[398311145,1765522838573,-2641.32,0.00047123,120]
[398311146,1765522838643,-500.0,0.00047123,120]
[398311147,1765522838711,-500.0,0.00047123,14]
[398311148,1765522838781,-865.5,0.00047123,47]
[398311149,1765522838847,-574.17,0.00047123,90]
[398311150,1765522838912,-1962.36,0.00047123,120]
[398311151,1765522838977,-2123.12,0.00047123,120]
[398311152,1765522839042,-500.0,0.00047123,120]
[398311153,1765522839113,-200.0,0.00047155,120]
[398311154,1765522839179,-631.29,0.0004725,120]
[398311155,1765522839247,-5475.82,0.0004725,120]
[398311156,1765522839311,-185.5,0.0004725,120]
[398311157,1765522839379,-675.16,0.0004725,120]
[398311158,1765522839447,-583.39,0.0004725,120]
[398311159,1765522839512,-500.0,0.00047397,120]
[398311160,1765522839576,-503.7702099,0.00047397,120]
[398311161,1765522839639,-500.0,0.00047397,120]
[398311162,1765522839706,-615.35734092,0.00047397,120]
[398311163,1765522839772,-500.0,0.00047397,120]
[398311164,1765522839836,-500.0,0.00047397,120]
[398311165,1765522839901,-500.0,0.00047397,120]
[398311166,1765522839964,-500.0,0.00047397,120]
[398311167,1765522840029,-500.0,0.00047397,120]
[398311168,1765522840092,-500.0,0.00047397,120]
[398311169,1765522840158,-500.0,0.00047397,120]
[398311170,1765522840230,-500.0,0.00047397,120]
[398311171,1765522840304,-829.62,0.00047397,120]
[398311172,1765522840376,-844.46,0.00047397,120]
[398311173,1765522840453,-500.0,0.00047397,120]
[398311174,1765522840530,-500.0,0.00047397,120]
[398311175,1765522840602,-642.29,0.00047397,120]
[398311176,1765522840667,-500.0,0.00047397,120]
[398311177,1765522840732,-523.71,0.00047397,120]
[398311178,1765522840802,-500.0,0.00047397,120]
[398311179,1765522840876,-501.01062419,0.00047397,120]
[398311180,1765522840948,-500.0,0.00047397,120]
[398311181,1765522841197,-500.0,0.00047397,120]
[398311182,1765522841272,-996.15,0.00047397,120]
[398311183,1765522841345,-500.0,0.00047397,15]
[398311184,1765522841418,-500.0,0.00047397,120]
[398311185,1765522841490,-2422.14,0.00047397,120]
[398311186,1765522841558,-237.40874648,0.00047397,120]
[398311187,1765522841624,-500.0,0.00047397,120]
[398311188,1765522841696,-500.0,0.00047397,120]
[398311189,1765522841767,-500.0,0.00047397,120]
[398311190,1765522841836,-500.0,0.00047397,120]
[398311191,1765522841903,-500.0,0.00047397,120]
[398311192,1765522841976,-500.0,0.00047397,120]
[398311193,1765522842041,-500.0,0.00047397,120]
[398311194,1765522842111,-476.51335107,0.00047397,120]
[398311195,1765522842176,-500.0,0.00047397,120]
[398311196,1765522842241,-500.0,0.00047397,120]
[398311197,1765522842311,-500.0,0.00047397,120]
[398311198,1765522842383,-500.0,0.00047397,120]
[398311199,1765522842452,-500.0,0.00047397,120]
[398311200,1765522842527,-704.95,0.00047397,120]
[398311201,1765522842598,-500.0,0.00047397,120]
[398311202,1765522842667,-500.0,0.00047397,120]
[398311203,1765522842734,-500.0,0.00047397,120]
[398311204,1765522842796,-1040.24,0.00047397,120]
[398311205,1765522842859,-500.0,0.00047397,120]
[398311206,1765522842925,-500.0,0.00047397,120]
[398311207,1765522842995,-500.0,0.00047397,120]
[398311208,1765522843068,-500.0,0.00047397,120]
[398311209,1765522843138,-500.0,0.00047397,120]
[398311210,1765522843206,-500.0,0.00047397,120]
[398311211,1765522843274,-500.0,0.00047397,120]
[398311212,1765522843349,-500.0,0.00047397,120]
[398311213,1765522843424,-500.0,0.00047397,120]
[398311214,1765522843500,-477.79137843,0.00047397,120]
[398311215,1765522843575,-500.0,0.00047397,120]
[398311216,1765522843646,-559.69179124,0.00047397,120]
[398311217,1765522843721,-1610.05,0.00047397,120]
[398311218,1765522843799,-868.23,0.00047397,120]
[398311219,1765522843873,-500.0,0.00047397,120]
[398311220,1765522843947,-500.0,0.00047397,120]
[398311221,1765522844020,-500.0,0.00047397,120]
[398311222,1765522844089,-898.29,0.00047397,120]
[398311223,1765522844159,-851.93,0.00047397,120]
[398311224,1765522844231,-500.0,0.00047397,120]
[398311225,1765522844304,-1132.66,0.00047397,120]
[398311226,1765522844378,-500.0,0.00047397,120]
[398311227,1765522844451,-500.0,0.00047397,120]
[398311228,1765522844526,-1168.71,0.00047397,120]
[398311229,1765522844605,-500.0,0.00047397,120]
[398311230,1765522844682,-1068.57,0.00047397,120]
[398311231,1765522844753,-500.0,0.00047397,120]
[398311232,1765522844821,-500.0,0.00047397,120]
[398311233,1765522844889,-500.0,0.00047397,120]
[398311234,1765522844966,-500.0,0.00047397,120]
[398311235,1765522845046,-500.0,0.00047397,120]
[398311236,1765522845125,-677.68,0.00047397,120]
[398311237,1765522845202,-500.0,0.00047397,120]
[398311238,1765522845280,-500.0,0.00047397,120]
[398311239,1765522845355,-449.01159978,0.00047397,120]
[398311240,1765522845427,-500.0,0.00047397,120]
[398311241,1765522845501,-500.0,0.00047397,120]
[398311242,1765522845573,-500.0,0.00047397,120]
[398311243,1765522845641,-1045.51,0.00047397,120]
[398311244,1765522845710,-1292.34,0.00047397,120]
[398311245,1765522845783,-586.8,0.00047397,120]
[398311246,1765522845856,-550.61,0.00047397,120]
[398311247,1765522845932,-500.0,0.00047397,120]
[398311248,1765522846010,-743.42,0.00047397,120]
[398311249,1765522846085,-500.0,0.00047397,120]
[398311250,1765522846160,-500.0,0.00047397,120]
[398311251,1765522846236,-500.0,0.00047397,120]
[398311252,1765522846316,-951.52,0.00047397,120]
[398311253,1765522846393,-500.0,0.00047397,120]
[398311254,1765522846473,-500.0,0.00047397,120]
[398311255,1765522846548,-566.3,0.00047397,120]
[398311256,1765522846615,-503.14,0.00047397,120]
[398311257,1765522846681,-500.0,0.00047397,120]
[398311258,1765522846750,-533.09,0.00047397,120]
[398311259,1765522846815,-500.0,0.00047397,120]
[398311260,1765522846879,-500.0,0.00047397,120]
[398311261,1765522846943,-1229.87,0.00047397,30]
[398311262,1765522847010,-999.83,0.00047397,120]
[398311263,1765522847077,-1364.32,0.00047397,120]
[398311264,1765522847144,-1266.38,0.00047397,120]
[398311265,1765522847210,-640.23,0.00047397,120]
[398311266,1765522847281,-500.0,0.00047397,10]
[398311267,1765522847349,-500.0,0.00047397,120]
[398311268,1765522847417,-913.86,0.00047397,120]
[398311269,1765522847485,-844.69,0.00047397,120]
[398311270,1765522847559,-500.0,0.00047397,120]
[398311271,1765522847630,-500.0,0.00047397,120]
[398311272,1765522847704,-526.31,0.00047397,120]
[398311273,1765522847778,-500.0,0.00047397,120]
[398311274,1765522847850,-500.0,0.00047397,120]
[398311275,1765522848078,-500.0,0.00047397,120]
[398311276,1765522848147,-500.0,0.00047397,120]
[398311277,1765522848215,-500.0,0.00047397,120]
[398311278,1765522848284,-500.0,0.00047397,120]
[398311279,1765522848360,-737.19,0.00047397,120]
[398311280,1765522848435,-1907.91,0.00047397,120]
[398311281,1765522848512,-235.27357894,0.00047397,120]
[398311282,1765522848589,-2056.31,0.00047397,120]
[398311283,1765522848659,-500.0,0.00047397,120]
[398311284,1765522848730,-500.0,0.00047397,120]
[398311285,1765522848799,-500.0,0.00047397,120]
[398311286,1765522848869,-500.0,0.00047397,120]
[398311287,1765522848935,-503.42000799,0.00047397,120]
[398311288,1765522848999,-1267.12,0.00047397,120]
[398311289,1765522849066,-500.0,0.00047397,30]
[398311290,1765522849135,-500.0,0.00047397,120]
[398311291,1765522849202,-3009.47,0.00047397,120]
[398311292,1765522849268,-500.0,0.00047397,120]
[398311293,1765522849345,-500.0,0.00047397,120]
[398311294,1765522849423,-500.0,0.00047397,120]
[398311295,1765522849499,-500.0,0.00047397,120]
[398311296,1765522849577,-997.13,0.00047397,120]
[398311297,1765522849656,-501.57166671,0.00047397,120]
[398311298,1765522849735,-500.0,0.00047397,120]
[398311299,1765522849813,-1152.48,0.00047397,120]
[398311300,1765522849900,-1451.93,0.00047397,120]
[398311301,1765522849975,-500.0,0.00047397,120]
[398311302,1765522850060,-500.0,0.00047397,120]
[398311303,1765522850149,-500.0,0.00047397,120]
[398311304,1765522850234,-500.0,0.00047397,120]
[398311305,1765522850308,-1664.42,0.00047397,120]
[398311306,1765522850381,-257.33782956,0.00047397,120]
[398311307,1765522850460,-500.0,0.00047397,120]
[398311308,1765522850532,-1272.14,0.00047397,120]
[398311309,1765522850599,-500.0,0.00047397,120]
[398311310,1765522850665,-564.36,0.00047397,120]
[398311311,1765522850735,-387.46053993,0.00047397,120]
[398311312,1765522850804,-500.0,0.00047397,120]
[398311313,1765522850875,-500.0,0.00047397,120]
[398311314,1765522850945,-797.77,0.00047397,120]
[398311315,1765522851015,-500.0,0.00047397,120]
[398311316,1765522851085,-586.20569663,0.00047397,120]
[398311317,1765522851151,-1088.02,0.00047397,120]
[398311318,1765522851220,-500.0,0.00047397,120]
[398311319,1765522851297,-956.91,0.00047397,120]
[398311320,1765522851375,-500.0,0.00047397,120]
[398311321,1765522851449,-3199.14,0.00047397,120]
[398311322,1765522851524,-695.92,0.00047397,120]
[398311323,1765522851597,-500.0,0.00047397,120]
[398311324,1765522851666,-829.36,0.00047397,120]
[398311325,1765522851731,-500.0,0.00047397,120]
[398311326,1765522851799,-758.9,0.00047397,120]
[398311327,1765522851867,-500.0,0.00047397,120]
[398311328,1765522851932,-2256.18,0.00047397,30]
[398311329,1765522851998,-500.0,0.00047397,120]
[398311330,1765522852064,-500.0,0.00047397,120]
[398311331,1765522852132,-500.0,0.00047397,20]
[398311332,1765522852204,-500.0,0.00047397,120]
[398311333,1765522852277,-685.67,0.00047397,120]
[398311334,1765522852348,-500.0,0.00047397,120]
[398311335,1765522852418,-2049.37,0.00047397,120]
[398311336,1765522852487,-500.0,0.00047397,120]
[398311337,1765522852565,-500.0,0.00047397,120]
[398311338,1765522852636,-500.0,0.00047397,120]
[398311339,1765522852703,-500.49846072,0.00047397,120]
[398311340,1765522852769,-500.0,0.00047397,120]
[398311341,1765522852835,-250.40455991,0.00047397,120]
[398311342,1765522852900,-379.94174762,0.00047397,120]
[398311343,1765522852964,-500.0,0.00047397,120]
[398311344,1765522853029,-500.0,0.00047397,120]
[398311345,1765522853099,-500.0,0.00047397,120]
[398311346,1765522853180,-500.0,0.00047397,120]
[398311347,1765522853252,-500.0,0.00047397,120]
[398311348,1765522853347,-500.0,0.00047397,120]
[398311349,1765522853428,-1495.74,0.00047397,120]
[398311350,1765522853504,-973.25,0.00047397,120]
[398311351,1765522853581,-500.0,0.00047397,100]
[398311352,1765522853654,-500.0,0.00047397,120]
[398311353,1765522853729,-922.08,0.00047397,120]
[398311354,1765522853808,-500.0,0.00047397,120]
[398311355,1765522853883,-2232.19,0.00047397,120]
[398311356,1765522853954,-250.02660599,0.00047397,120]
[398311357,1765522854023,-616.57,0.00047397,120]
[398311358,1765522854115,-500.0,0.00047397,120]
[398311359,1765522854205,-2914.33,0.00047397,120]
[398311360,1765522854277,-1565.98,0.00047397,120]
[398311361,1765522854350,-2415.75,0.00047397,120]
[398311362,1765522854418,-605.24,0.00047397,120]
[398311363,1765522854488,-500.0,0.00047397,120]
[398311364,1765522854558,-6274.27,0.00047397,120]
[398311365,1765522854623,-443.99171204,0.00047397,120]
[398311366,1765522854687,-736.06,0.00047397,120]
[398311367,1765522854753,-2391.73,0.00047397,120]
[398311368,1765522854821,-500.0,0.00047397,120]
[398311369,1765522855067,-2774.57,0.00047397,120]
[398311370,1765522855134,-500.0,0.00047397,120]
[398311371,1765522855201,-605.85,0.00047397,120]
[398311372,1765522855269,-501.62639453,0.00047397,120]
[398311373,1765522855341,-500.0,0.00047397,120]
[398311374,1765522855411,-500.0,0.00047397,120]
[398311375,1765522855478,-500.0,0.00047397,120]
[398311376,1765522855545,-500.0,0.00047397,120]
[398311377,1765522855609,-789.88,0.00047397,120]
[398311378,1765522855678,-1658.63,0.00047397,120]
[398311379,1765522855745,-500.72880044,0.00047397,120]
[398311380,1765522855811,-612.09,0.00047397,120]
[398311381,1765522855878,-558.74503485,0.00047397,120]
[398311382,1765522855950,-500.0,0.00047397,120]
[398311383,1765522856023,-500.0,0.00047397,120]
[398311384,1765522856095,-935.39,0.00047397,120]
[398311385,1765522856171,-500.0,0.00047397,120]
[398311386,1765522856246,-500.0,0.00047397,120]
[398311387,1765522856320,-500.0,0.00047397,120]
[398311388,1765522856392,-500.0,0.00047397,120]
[398311389,1765522856463,-500.0,0.00047397,120]
[398311390,1765522856530,-587.6,0.00047397,120]
[398311391,1765522856600,-1139.63,0.00047397,120]
[398311392,1765522856668,-500.0,0.00047397,120]
[398311393,1765522856737,-500.0,0.00047397,120]
[398311394,1765522856800,-736.74,0.00047397,120]
[398311395,1765522856865,-1219.12,0.00047397,120]
[398311396,1765522856929,-500.0,0.00047397,120]
[398311397,1765522856994,-697.09,0.00047397,120]
[398311398,1765522857057,-500.0,0.00047397,120]
[398311399,1765522857125,-500.0,0.00047397,120]
[398311400,1765522857199,-500.0,0.00047397,120]
[398311401,1765522857266,-500.0,0.00047397,120]
[398311402,1765522857335,-733.04,0.00047397,120]
[398311403,1765522857401,-500.0,0.00047397,120]
[398311404,1765522857468,-500.0,0.00047397,120]
[398311405,1765522857538,-1414.72,0.00047397,120]
[398311406,1765522857604,-841.3,0.00047397,120]
[398311407,1765522857665,-612.29452592,0.00047397,120]
[398311408,1765522857728,-1049.52,0.00047397,120]
[398311409,1765522857793,-500.0,0.00047397,120]
[398311410,1765522857857,-500.0,0.00047397,120]
[398311411,1765522857918,-500.0,0.00047397,120]